{"text_format":"1","workbook":"xlsx","n_sheets":2,"sheets":["Sheet2","Sheet1"],"not_rendered":{"charts":0,"images":0,"macros":1,"external_links":0,"defined_names":2,"comments":0,"pivot_tables":1},"unopened":[],"bounds":{"document_bytes":16777216,"sheet_cells":100000,"rows_first":2000,"rows_last":500,"rows_between":2000,"halvings":0,"cell_chars":16384,"cell_head_chars":4096},"cells_cut":0,"cells_raw":0,"read":"whole","date_system":"1900"}

{"sheet":"Sheet2","index":0,"n_rows":18,"n_cols":4,"rows_kept":18,"cut":false,"hidden":false,"merged":[[4,0,5,3]]}
["شركة دلمون المحدودة"]
[]
[]
[]
["كشف حساب عميل "]
[]
[]
[]
[]
[]
[]
["اسم الشركة","دلمون المحدودة"]
[]
[null,"Values"]
["Row Labels","Sum of الرقم ","Sum of القيمة2","Sum of القيمة + -"]
["2018-01-06",4006,10000,10000]
["2018-01-07",4006,10000,-10000]
["Grand Total",8012,20000,0]

{"sheet":"Sheet1","index":1,"n_rows":1526,"n_cols":7,"rows_kept":1526,"cut":false,"hidden":false,"merged":[[13,6,15,12]]}
["نوع العملية ","التاريخ ","الرقم ","اسم الشركة","القيمة","القيمة + -"]
["فاتورة","2018-01-01",4001,"الاسلاك ",10000,{"$f":"IF(A2=\"فاتورة\",E2,-E2)","v":10000}]
["فاتورة","2018-01-02",4002,"الاسلاك ",10000,{"$f":"IF(A3=\"فاتورة\",E3,-E3)","v":10000}]
[null,null,null,null,null,0]
[null,null,null,null,null,0]
[null,null,null,null,null,0]
[null,null,null,null,null,{"$f":"IF(A7=\"فاتورة\",E7,-E7)","v":0}]
[null,null,null,null,null,0]
[null,null,null,null,null,0]
[null,null,null,null,null,0]
[null,null,null,null,null,0]
[null,null,null,null,null,0]
[null,null,null,null,null,0]
[null,null,null,null,null,0,"الفاتورة 4001 في السطر الاول تحمل نفس الرقم في السطر 16 و لم تحذف "]
[null,null,null,null,null,0]
["تحصيل","2018-01-03",4001,"الاسلاك ",10000,-10000]
[null,null,null,null,null,0]
[null,null,null,null,null,0]
[null,null,null,null,null,0]
[null,null,null,null,null,0]
[null,null,null,null,null,0]
[null,null,null,null,null,0]
[null,null,null,null,null,0]
[null,null,null,null,null,0]
[null,null,null,null,null,0]
[null,null,null,null,null,0]
[null,null,null,null,null,0]
[null,null,null,null,null,0]
[null,null,null,null,null,0]
[null,null,null,null,null,0]
[null,null,null,null,null,0]
[null,null,null,null,null,0]
[null,null,null,null,null,0]
[null,null,null,null,null,0]
[null,null,null,null,null,0]
[null,null,null,null,null,0]
[null,null,null,null,null,0]
[null,null,null,null,null,0]
[null,null,null,null,null,0]
[null,null,null,null,null,0]
[null,null,null,null,null,0]
[null,null,null,null,null,0]
[null,null,null,null,null,0]
[null,null,null,null,null,0]
[null,null,null,null,null,0]
[null,null,null,null,null,0]
[null,null,null,null,null,0]
[null,null,null,null,null,0]
[null,null,null,null,null,0]
[null,null,null,null,null,0]
[null,null,null,null,null,0]
[null,null,null,null,null,0]
[null,null,null,null,null,0]
[null,null,null,null,null,0]
[null,null,null,null,null,0]
[null,null,null,null,null,0]
[null,null,null,null,null,0]
[null,null,null,null,null,0]
[null,null,null,null,null,0]
[null,null,null,null,null,0]
[null,null,null,null,null,0]
[null,null,null,null,null,0]
[null,null,null,null,null,0]
[null,null,null,null,null,0]
[null,null,null,null,null,0]
[null,null,null,null,null,0]
[null,null,null,null,null,0]
[null,null,null,null,null,0]
[null,null,null,null,null,0]
[null,null,null,null,null,0]
[null,null,null,null,null,{"$f":"IF(A71=\"فاتورة\",E71,-E71)","v":0}]
[null,null,null,null,null,0]
[null,null,null,null,null,0]
[null,null,null,null,null,0]
[null,null,null,null,null,0]
[null,null,null,null,null,0]
[null,null,null,null,null,0]
[null,null,null,null,null,0]
[null,null,null,null,null,0]
[null,null,null,null,null,0]
[null,null,null,null,null,0]
[null,null,null,null,null,0]
[null,null,null,null,null,0]
[null,null,null,null,null,0]
[null,null,null,null,null,0]
[null,null,null,null,null,0]
[null,null,null,null,null,0]
[null,null,null,null,null,0]
[null,null,null,null,null,0]
[null,null,null,null,null,0]
[null,null,null,null,null,0]
[null,null,null,null,null,0]
[null,null,null,null,null,0]
[null,null,null,null,null,0]
[null,null,null,null,null,0]
[null,null,null,null,null,0]
[null,null,null,null,null,0]
[null,null,null,null,null,0]
[null,null,null,null,null,0]
[null,null,null,null,null,0]
[null,null,null,null,null,0]
[null,null,null,null,null,0]
[null,null,null,null,null,0]
[null,null,null,null,null,0]
[null,null,null,null,null,0]
[null,null,null,null,null,0]
[null,null,null,null,null,0]
[null,null,null,null,null,0]
[null,null,null,null,null,0]
[null,null,null,null,null,0]
[null,null,null,null,null,0]
[null,null,null,null,null,0]
[null,null,null,null,null,0]
[null,null,null,null,null,0]
[null,null,null,null,null,0]
[null,null,null,null,null,0]
[null,null,null,null,null,0]
[null,null,null,null,null,0]
[null,null,null,null,null,0]
[null,null,null,null,null,0]
[null,null,null,null,null,0]
[null,null,null,null,null,0]
[null,null,null,null,null,0]
[null,null,null,null,null,0]
[null,null,null,null,null,0]
[null,null,null,null,null,0]
[null,null,null,null,null,0]
[null,null,null,null,null,0]
[null,null,null,null,null,0]
[null,null,null,null,null,0]
[null,null,null,null,null,0]
[null,null,null,null,null,0]
[null,null,null,null,null,0]
[null,null,null,null,null,0]
[null,null,null,null,null,{"$f":"IF(A135=\"فاتورة\",E135,-E135)","v":0}]
[null,null,null,null,null,0]
[null,null,null,null,null,0]
[null,null,null,null,null,0]
[null,null,null,null,null,0]
[null,null,null,null,null,0]
[null,null,null,null,null,0]
[null,null,null,null,null,0]
[null,null,null,null,null,0]
[null,null,null,null,null,0]
[null,null,null,null,null,0]
[null,null,null,null,null,0]
[null,null,null,null,null,0]
[null,null,null,null,null,0]
[null,null,null,null,null,0]
[null,null,null,null,null,0]
[null,null,null,null,null,0]
[null,null,null,null,null,0]
[null,null,null,null,null,0]
[null,null,null,null,null,0]
[null,null,null,null,null,0]
[null,null,null,null,null,0]
[null,null,null,null,null,0]
[null,null,null,null,null,0]
[null,null,null,null,null,0]
[null,null,null,null,null,0]
[null,null,null,null,null,0]
[null,null,null,null,null,0]
[null,null,null,null,null,0]
[null,null,null,null,null,0]
[null,null,null,null,null,0]
[null,null,null,null,null,0]
[null,null,null,null,null,0]
[null,null,null,null,null,0]
[null,null,null,null,null,0]
[null,null,null,null,null,0]
[null,null,null,null,null,0]
[null,null,null,null,null,0]
[null,null,null,null,null,0]
[null,null,null,null,null,0]
[null,null,null,null,null,0]
[null,null,null,null,null,0]
[null,null,null,null,null,0]
[null,null,null,null,null,0]
[null,null,null,null,null,0]
[null,null,null,null,null,0]
[null,null,null,null,null,0]
[null,null,null,null,null,0]
[null,null,null,null,null,0]
[null,null,null,null,null,0]
[null,null,null,null,null,0]
[null,null,null,null,null,0]
[null,null,null,null,null,0]
[null,null,null,null,null,0]
[null,null,null,null,null,0]
[null,null,null,null,null,0]
[null,null,null,null,null,0]
[null,null,null,null,null,0]
[null,null,null,null,null,0]
[null,null,null,null,null,0]
[null,null,null,null,null,0]
[null,null,null,null,null,0]
[null,null,null,null,null,0]
[null,null,null,null,null,0]
[null,null,null,null,null,{"$f":"IF(A199=\"فاتورة\",E199,-E199)","v":0}]
[null,null,null,null,null,0]
[null,null,null,null,null,0]
[null,null,null,null,null,0]
[null,null,null,null,null,0]
[null,null,null,null,null,0]
[null,null,null,null,null,0]
[null,null,null,null,null,0]
[null,null,null,null,null,0]
[null,null,null,null,null,0]
[null,null,null,null,null,0]
[null,null,null,null,null,0]
[null,null,null,null,null,0]
[null,null,null,null,null,0]
[null,null,null,null,null,0]
[null,null,null,null,null,0]
[null,null,null,null,null,0]
[null,null,null,null,null,0]
[null,null,null,null,null,0]
[null,null,null,null,null,0]
[null,null,null,null,null,0]
[null,null,null,null,null,0]
[null,null,null,null,null,0]
[null,null,null,null,null,0]
[null,null,null,null,null,0]
[null,null,null,null,null,0]
[null,null,null,null,null,0]
[null,null,null,null,null,0]
[null,null,null,null,null,0]
[null,null,null,null,null,0]
[null,null,null,null,null,0]
[null,null,null,null,null,0]
[null,null,null,null,null,0]
[null,null,null,null,null,0]
[null,null,null,null,null,0]
[null,null,null,null,null,0]
[null,null,null,null,null,0]
[null,null,null,null,null,0]
[null,null,null,null,null,0]
[null,null,null,null,null,0]
[null,null,null,null,null,0]
[null,null,null,null,null,0]
[null,null,null,null,null,0]
[null,null,null,null,null,0]
[null,null,null,null,null,0]
[null,null,null,null,null,0]
[null,null,null,null,null,0]
[null,null,null,null,null,0]
[null,null,null,null,null,0]
[null,null,null,null,null,0]
[null,null,null,null,null,0]
[null,null,null,null,null,0]
[null,null,null,null,null,0]
[null,null,null,null,null,0]
[null,null,null,null,null,0]
[null,null,null,null,null,0]
[null,null,null,null,null,0]
[null,null,null,null,null,0]
[null,null,null,null,null,0]
[null,null,null,null,null,0]
[null,null,null,null,null,0]
[null,null,null,null,null,0]
[null,null,null,null,null,0]
[null,null,null,null,null,0]
[null,null,null,null,null,{"$f":"IF(A263=\"فاتورة\",E263,-E263)","v":0}]
[null,null,null,null,null,0]
[null,null,null,null,null,0]
[null,null,null,null,null,0]
[null,null,null,null,null,0]
[null,null,null,null,null,0]
[null,null,null,null,null,0]
[null,null,null,null,null,0]
[null,null,null,null,null,0]
[null,null,null,null,null,0]
[null,null,null,null,null,0]
[null,null,null,null,null,0]
[null,null,null,null,null,0]
[null,null,null,null,null,0]
[null,null,null,null,null,0]
[null,null,null,null,null,0]
[null,null,null,null,null,0]
[null,null,null,null,null,0]
[null,null,null,null,null,0]
[null,null,null,null,null,0]
[null,null,null,null,null,0]
[null,null,null,null,null,0]
[null,null,null,null,null,0]
[null,null,null,null,null,0]
[null,null,null,null,null,0]
[null,null,null,null,null,0]
[null,null,null,null,null,0]
[null,null,null,null,null,0]
[null,null,null,null,null,0]
[null,null,null,null,null,0]
[null,null,null,null,null,0]
[null,null,null,null,null,0]
[null,null,null,null,null,0]
[null,null,null,null,null,0]
[null,null,null,null,null,0]
[null,null,null,null,null,0]
[null,null,null,null,null,0]
[null,null,null,null,null,0]
[null,null,null,null,null,0]
[null,null,null,null,null,0]
[null,null,null,null,null,0]
[null,null,null,null,null,0]
[null,null,null,null,null,0]
[null,null,null,null,null,0]
[null,null,null,null,null,0]
[null,null,null,null,null,0]
[null,null,null,null,null,0]
[null,null,null,null,null,0]
[null,null,null,null,null,0]
[null,null,null,null,null,0]
[null,null,null,null,null,0]
[null,null,null,null,null,0]
[null,null,null,null,null,0]
[null,null,null,null,null,0]
[null,null,null,null,null,0]
[null,null,null,null,null,0]
[null,null,null,null,null,0]
[null,null,null,null,null,0]
[null,null,null,null,null,0]
[null,null,null,null,null,0]
[null,null,null,null,null,0]
[null,null,null,null,null,0]
[null,null,null,null,null,0]
[null,null,null,null,null,0]
[null,null,null,null,null,{"$f":"IF(A327=\"فاتورة\",E327,-E327)","v":0}]
[null,null,null,null,null,0]
[null,null,null,null,null,0]
[null,null,null,null,null,0]
[null,null,null,null,null,0]
[null,null,null,null,null,0]
[null,null,null,null,null,0]
[null,null,null,null,null,0]
[null,null,null,null,null,0]
[null,null,null,null,null,0]
[null,null,null,null,null,0]
[null,null,null,null,null,0]
[null,null,null,null,null,0]
[null,null,null,null,null,0]
[null,null,null,null,null,0]
[null,null,null,null,null,0]
[null,null,null,null,null,0]
[null,null,null,null,null,0]
[null,null,null,null,null,0]
[null,null,null,null,null,0]
[null,null,null,null,null,0]
[null,null,null,null,null,0]
[null,null,null,null,null,0]
[null,null,null,null,null,0]
[null,null,null,null,null,0]
[null,null,null,null,null,0]
[null,null,null,null,null,0]
[null,null,null,null,null,0]
[null,null,null,null,null,0]
[null,null,null,null,null,0]
[null,null,null,null,null,0]
[null,null,null,null,null,0]
[null,null,null,null,null,0]
[null,null,null,null,null,0]
[null,null,null,null,null,0]
[null,null,null,null,null,0]
[null,null,null,null,null,0]
[null,null,null,null,null,0]
[null,null,null,null,null,0]
[null,null,null,null,null,0]
[null,null,null,null,null,0]
[null,null,null,null,null,0]
[null,null,null,null,null,0]
[null,null,null,null,null,0]
[null,null,null,null,null,0]
[null,null,null,null,null,0]
[null,null,null,null,null,0]
[null,null,null,null,null,0]
[null,null,null,null,null,0]
[null,null,null,null,null,0]
[null,null,null,null,null,0]
[null,null,null,null,null,0]
[null,null,null,null,null,0]
[null,null,null,null,null,0]
[null,null,null,null,null,0]
[null,null,null,null,null,0]
[null,null,null,null,null,0]
[null,null,null,null,null,0]
[null,null,null,null,null,0]
[null,null,null,null,null,0]
[null,null,null,null,null,0]
[null,null,null,null,null,0]
[null,null,null,null,null,0]
[null,null,null,null,null,0]
[null,null,null,null,null,{"$f":"IF(A391=\"فاتورة\",E391,-E391)","v":0}]
[null,null,null,null,null,0]
[null,null,null,null,null,0]
[null,null,null,null,null,0]
[null,null,null,null,null,0]
[null,null,null,null,null,0]
[null,null,null,null,null,0]
[null,null,null,null,null,0]
[null,null,null,null,null,0]
[null,null,null,null,null,0]
[null,null,null,null,null,0]
[null,null,null,null,null,0]
[null,null,null,null,null,0]
[null,null,null,null,null,0]
[null,null,null,null,null,0]
[null,null,null,null,null,0]
[null,null,null,null,null,0]
[null,null,null,null,null,0]
[null,null,null,null,null,0]
[null,null,null,null,null,0]
[null,null,null,null,null,0]
[null,null,null,null,null,0]
[null,null,null,null,null,0]
[null,null,null,null,null,0]
[null,null,null,null,null,0]
[null,null,null,null,null,0]
[null,null,null,null,null,0]
[null,null,null,null,null,0]
[null,null,null,null,null,0]
[null,null,null,null,null,0]
[null,null,null,null,null,0]
[null,null,null,null,null,0]
[null,null,null,null,null,0]
[null,null,null,null,null,0]
[null,null,null,null,null,0]
[null,null,null,null,null,0]
[null,null,null,null,null,0]
[null,null,null,null,null,0]
[null,null,null,null,null,0]
[null,null,null,null,null,0]
[null,null,null,null,null,0]
[null,null,null,null,null,0]
[null,null,null,null,null,0]
[null,null,null,null,null,0]
[null,null,null,null,null,0]
[null,null,null,null,null,0]
[null,null,null,null,null,0]
[null,null,null,null,null,0]
[null,null,null,null,null,0]
[null,null,null,null,null,0]
[null,null,null,null,null,0]
[null,null,null,null,null,0]
[null,null,null,null,null,0]
[null,null,null,null,null,0]
[null,null,null,null,null,0]
[null,null,null,null,null,0]
[null,null,null,null,null,0]
[null,null,null,null,null,0]
[null,null,null,null,null,0]
[null,null,null,null,null,0]
[null,null,null,null,null,0]
[null,null,null,null,null,0]
[null,null,null,null,null,0]
[null,null,null,null,null,0]
[null,null,null,null,null,{"$f":"IF(A455=\"فاتورة\",E455,-E455)","v":0}]
[null,null,null,null,null,0]
[null,null,null,null,null,0]
[null,null,null,null,null,0]
[null,null,null,null,null,0]
[null,null,null,null,null,0]
[null,null,null,null,null,0]
[null,null,null,null,null,0]
[null,null,null,null,null,0]
[null,null,null,null,null,0]
[null,null,null,null,null,0]
[null,null,null,null,null,0]
[null,null,null,null,null,0]
[null,null,null,null,null,0]
[null,null,null,null,null,0]
[null,null,null,null,null,0]
[null,null,null,null,null,0]
[null,null,null,null,null,0]
[null,null,null,null,null,0]
[null,null,null,null,null,0]
[null,null,null,null,null,0]
[null,null,null,null,null,0]
[null,null,null,null,null,0]
[null,null,null,null,null,0]
[null,null,null,null,null,0]
[null,null,null,null,null,0]
[null,null,null,null,null,0]
[null,null,null,null,null,0]
[null,null,null,null,null,0]
[null,null,null,null,null,0]
[null,null,null,null,null,0]
[null,null,null,null,null,0]
[null,null,null,null,null,0]
[null,null,null,null,null,0]
[null,null,null,null,null,0]
[null,null,null,null,null,0]
[null,null,null,null,null,0]
[null,null,null,null,null,0]
[null,null,null,null,null,0]
[null,null,null,null,null,0]
[null,null,null,null,null,0]
[null,null,null,null,null,0]
[null,null,null,null,null,0]
[null,null,null,null,null,0]
[null,null,null,null,null,0]
[null,null,null,null,null,0]
[null,null,null,null,null,0]
[null,null,null,null,null,0]
[null,null,null,null,null,0]
[null,null,null,null,null,0]
[null,null,null,null,null,0]
[null,null,null,null,null,0]
[null,null,null,null,null,0]
[null,null,null,null,null,0]
[null,null,null,null,null,0]
[null,null,null,null,null,0]
[null,null,null,null,null,0]
[null,null,null,null,null,0]
[null,null,null,null,null,0]
[null,null,null,null,null,0]
[null,null,null,null,null,0]
[null,null,null,null,null,0]
[null,null,null,null,null,0]
[null,null,null,null,null,0]
[null,null,null,null,null,{"$f":"IF(A519=\"فاتورة\",E519,-E519)","v":0}]
[null,null,null,null,null,0]
[null,null,null,null,null,0]
[null,null,null,null,null,0]
[null,null,null,null,null,0]
[null,null,null,null,null,0]
[null,null,null,null,null,0]
[null,null,null,null,null,0]
[null,null,null,null,null,0]
[null,null,null,null,null,0]
[null,null,null,null,null,0]
[null,null,null,null,null,0]
[null,null,null,null,null,0]
[null,null,null,null,null,0]
[null,null,null,null,null,0]
[null,null,null,null,null,0]
[null,null,null,null,null,0]
[null,null,null,null,null,0]
[null,null,null,null,null,0]
[null,null,null,null,null,0]
[null,null,null,null,null,0]
[null,null,null,null,null,0]
[null,null,null,null,null,0]
[null,null,null,null,null,0]
[null,null,null,null,null,0]
[null,null,null,null,null,0]
[null,null,null,null,null,0]
[null,null,null,null,null,0]
[null,null,null,null,null,0]
[null,null,null,null,null,0]
[null,null,null,null,null,0]
[null,null,null,null,null,0]
[null,null,null,null,null,0]
[null,null,null,null,null,0]
[null,null,null,null,null,0]
[null,null,null,null,null,0]
[null,null,null,null,null,0]
[null,null,null,null,null,0]
[null,null,null,null,null,0]
[null,null,null,null,null,0]
[null,null,null,null,null,0]
[null,null,null,null,null,0]
[null,null,null,null,null,0]
[null,null,null,null,null,0]
[null,null,null,null,null,0]
[null,null,null,null,null,0]
[null,null,null,null,null,0]
[null,null,null,null,null,0]
[null,null,null,null,null,0]
[null,null,null,null,null,0]
[null,null,null,null,null,0]
[null,null,null,null,null,0]
[null,null,null,null,null,0]
[null,null,null,null,null,0]
[null,null,null,null,null,0]
[null,null,null,null,null,0]
[null,null,null,null,null,0]
[null,null,null,null,null,0]
[null,null,null,null,null,0]
[null,null,null,null,null,0]
[null,null,null,null,null,0]
[null,null,null,null,null,0]
[null,null,null,null,null,0]
[null,null,null,null,null,0]
[null,null,null,null,null,{"$f":"IF(A583=\"فاتورة\",E583,-E583)","v":0}]
[null,null,null,null,null,0]
[null,null,null,null,null,0]
[null,null,null,null,null,0]
[null,null,null,null,null,0]
[null,null,null,null,null,0]
[null,null,null,null,null,0]
[null,null,null,null,null,0]
[null,null,null,null,null,0]
[null,null,null,null,null,0]
[null,null,null,null,null,0]
[null,null,null,null,null,0]
[null,null,null,null,null,0]
[null,null,null,null,null,0]
[null,null,null,null,null,0]
[null,null,null,null,null,0]
[null,null,null,null,null,0]
[null,null,null,null,null,0]
[null,null,null,null,null,0]
[null,null,null,null,null,0]
[null,null,null,null,null,0]
[null,null,null,null,null,0]
[null,null,null,null,null,0]
[null,null,null,null,null,0]
[null,null,null,null,null,0]
[null,null,null,null,null,0]
[null,null,null,null,null,0]
[null,null,null,null,null,0]
[null,null,null,null,null,0]
[null,null,null,null,null,0]
[null,null,null,null,null,0]
[null,null,null,null,null,0]
[null,null,null,null,null,0]
[null,null,null,null,null,0]
[null,null,null,null,null,0]
[null,null,null,null,null,0]
[null,null,null,null,null,0]
[null,null,null,null,null,0]
[null,null,null,null,null,0]
[null,null,null,null,null,0]
[null,null,null,null,null,0]
[null,null,null,null,null,0]
[null,null,null,null,null,0]
[null,null,null,null,null,0]
[null,null,null,null,null,0]
[null,null,null,null,null,0]
[null,null,null,null,null,0]
[null,null,null,null,null,0]
[null,null,null,null,null,0]
[null,null,null,null,null,0]
[null,null,null,null,null,0]
[null,null,null,null,null,0]
[null,null,null,null,null,0]
[null,null,null,null,null,0]
[null,null,null,null,null,0]
[null,null,null,null,null,0]
[null,null,null,null,null,0]
[null,null,null,null,null,0]
[null,null,null,null,null,0]
[null,null,null,null,null,0]
[null,null,null,null,null,0]
[null,null,null,null,null,0]
[null,null,null,null,null,0]
[null,null,null,null,null,0]
[null,null,null,null,null,{"$f":"IF(A647=\"فاتورة\",E647,-E647)","v":0}]
[null,null,null,null,null,0]
[null,null,null,null,null,0]
[null,null,null,null,null,0]
[null,null,null,null,null,0]
[null,null,null,null,null,0]
[null,null,null,null,null,0]
[null,null,null,null,null,0]
[null,null,null,null,null,0]
[null,null,null,null,null,0]
[null,null,null,null,null,0]
[null,null,null,null,null,0]
[null,null,null,null,null,0]
[null,null,null,null,null,0]
[null,null,null,null,null,0]
[null,null,null,null,null,0]
[null,null,null,null,null,0]
[null,null,null,null,null,0]
[null,null,null,null,null,0]
[null,null,null,null,null,0]
[null,null,null,null,null,0]
[null,null,null,null,null,0]
[null,null,null,null,null,0]
[null,null,null,null,null,0]
[null,null,null,null,null,0]
[null,null,null,null,null,0]
[null,null,null,null,null,0]
[null,null,null,null,null,0]
[null,null,null,null,null,0]
[null,null,null,null,null,0]
[null,null,null,null,null,0]
[null,null,null,null,null,0]
[null,null,null,null,null,0]
[null,null,null,null,null,0]
[null,null,null,null,null,0]
[null,null,null,null,null,0]
[null,null,null,null,null,0]
[null,null,null,null,null,0]
[null,null,null,null,null,0]
[null,null,null,null,null,0]
[null,null,null,null,null,0]
[null,null,null,null,null,0]
[null,null,null,null,null,0]
[null,null,null,null,null,0]
[null,null,null,null,null,0]
[null,null,null,null,null,0]
[null,null,null,null,null,0]
[null,null,null,null,null,0]
[null,null,null,null,null,0]
[null,null,null,null,null,0]
[null,null,null,null,null,0]
[null,null,null,null,null,0]
[null,null,null,null,null,0]
[null,null,null,null,null,0]
[null,null,null,null,null,0]
[null,null,null,null,null,0]
[null,null,null,null,null,0]
[null,null,null,null,null,0]
[null,null,null,null,null,0]
[null,null,null,null,null,0]
[null,null,null,null,null,0]
[null,null,null,null,null,0]
[null,null,null,null,null,0]
[null,null,null,null,null,0]
[null,null,null,null,null,{"$f":"IF(A711=\"فاتورة\",E711,-E711)","v":0}]
[null,null,null,null,null,0]
[null,null,null,null,null,0]
[null,null,null,null,null,0]
[null,null,null,null,null,0]
[null,null,null,null,null,0]
[null,null,null,null,null,0]
[null,null,null,null,null,0]
[null,null,null,null,null,0]
[null,null,null,null,null,0]
[null,null,null,null,null,0]
[null,null,null,null,null,0]
[null,null,null,null,null,0]
[null,null,null,null,null,0]
[null,null,null,null,null,0]
[null,null,null,null,null,0]
[null,null,null,null,null,0]
[null,null,null,null,null,0]
[null,null,null,null,null,0]
[null,null,null,null,null,0]
[null,null,null,null,null,0]
[null,null,null,null,null,0]
[null,null,null,null,null,0]
[null,null,null,null,null,0]
[null,null,null,null,null,0]
[null,null,null,null,null,0]
[null,null,null,null,null,0]
[null,null,null,null,null,0]
[null,null,null,null,null,0]
[null,null,null,null,null,0]
[null,null,null,null,null,0]
[null,null,null,null,null,0]
[null,null,null,null,null,0]
[null,null,null,null,null,0]
[null,null,null,null,null,0]
[null,null,null,null,null,0]
[null,null,null,null,null,0]
[null,null,null,null,null,0]
[null,null,null,null,null,0]
[null,null,null,null,null,0]
[null,null,null,null,null,0]
[null,null,null,null,null,0]
[null,null,null,null,null,0]
[null,null,null,null,null,0]
[null,null,null,null,null,0]
[null,null,null,null,null,0]
[null,null,null,null,null,0]
[null,null,null,null,null,0]
[null,null,null,null,null,0]
[null,null,null,null,null,0]
[null,null,null,null,null,0]
[null,null,null,null,null,0]
[null,null,null,null,null,0]
[null,null,null,null,null,0]
[null,null,null,null,null,0]
[null,null,null,null,null,0]
[null,null,null,null,null,0]
[null,null,null,null,null,0]
[null,null,null,null,null,0]
[null,null,null,null,null,0]
[null,null,null,null,null,0]
[null,null,null,null,null,0]
[null,null,null,null,null,0]
[null,null,null,null,null,0]
[null,null,null,null,null,{"$f":"IF(A775=\"فاتورة\",E775,-E775)","v":0}]
[null,null,null,null,null,0]
[null,null,null,null,null,0]
[null,null,null,null,null,0]
[null,null,null,null,null,0]
[null,null,null,null,null,0]
[null,null,null,null,null,0]
[null,null,null,null,null,0]
[null,null,null,null,null,0]
[null,null,null,null,null,0]
[null,null,null,null,null,0]
[null,null,null,null,null,0]
[null,null,null,null,null,0]
[null,null,null,null,null,0]
[null,null,null,null,null,0]
[null,null,null,null,null,0]
[null,null,null,null,null,0]
[null,null,null,null,null,0]
[null,null,null,null,null,0]
[null,null,null,null,null,0]
[null,null,null,null,null,0]
[null,null,null,null,null,0]
[null,null,null,null,null,0]
[null,null,null,null,null,0]
[null,null,null,null,null,0]
[null,null,null,null,null,0]
[null,null,null,null,null,0]
[null,null,null,null,null,0]
[null,null,null,null,null,0]
[null,null,null,null,null,0]
[null,null,null,null,null,0]
[null,null,null,null,null,0]
[null,null,null,null,null,0]
[null,null,null,null,null,0]
[null,null,null,null,null,0]
[null,null,null,null,null,0]
[null,null,null,null,null,0]
[null,null,null,null,null,0]
[null,null,null,null,null,0]
[null,null,null,null,null,0]
[null,null,null,null,null,0]
[null,null,null,null,null,0]
[null,null,null,null,null,0]
[null,null,null,null,null,0]
[null,null,null,null,null,0]
[null,null,null,null,null,0]
[null,null,null,null,null,0]
[null,null,null,null,null,0]
[null,null,null,null,null,0]
[null,null,null,null,null,0]
[null,null,null,null,null,0]
[null,null,null,null,null,0]
[null,null,null,null,null,0]
[null,null,null,null,null,0]
[null,null,null,null,null,0]
[null,null,null,null,null,0]
[null,null,null,null,null,0]
[null,null,null,null,null,0]
[null,null,null,null,null,0]
[null,null,null,null,null,0]
[null,null,null,null,null,0]
[null,null,null,null,null,0]
[null,null,null,null,null,0]
[null,null,null,null,null,0]
[null,null,null,null,null,{"$f":"IF(A839=\"فاتورة\",E839,-E839)","v":0}]
[null,null,null,null,null,0]
[null,null,null,null,null,0]
[null,null,null,null,null,0]
[null,null,null,null,null,0]
[null,null,null,null,null,0]
[null,null,null,null,null,0]
[null,null,null,null,null,0]
[null,null,null,null,null,0]
[null,null,null,null,null,0]
[null,null,null,null,null,0]
[null,null,null,null,null,0]
[null,null,null,null,null,0]
[null,null,null,null,null,0]
[null,null,null,null,null,0]
[null,null,null,null,null,0]
[null,null,null,null,null,0]
[null,null,null,null,null,0]
[null,null,null,null,null,0]
[null,null,null,null,null,0]
[null,null,null,null,null,0]
[null,null,null,null,null,0]
[null,null,null,null,null,0]
[null,null,null,null,null,0]
[null,null,null,null,null,0]
[null,null,null,null,null,0]
[null,null,null,null,null,0]
[null,null,null,null,null,0]
[null,null,null,null,null,0]
[null,null,null,null,null,0]
[null,null,null,null,null,0]
[null,null,null,null,null,0]
[null,null,null,null,null,0]
[null,null,null,null,null,0]
[null,null,null,null,null,0]
[null,null,null,null,null,0]
[null,null,null,null,null,0]
[null,null,null,null,null,0]
[null,null,null,null,null,0]
[null,null,null,null,null,0]
[null,null,null,null,null,0]
[null,null,null,null,null,0]
[null,null,null,null,null,0]
[null,null,null,null,null,0]
[null,null,null,null,null,0]
[null,null,null,null,null,0]
[null,null,null,null,null,0]
[null,null,null,null,null,0]
[null,null,null,null,null,0]
[null,null,null,null,null,0]
[null,null,null,null,null,0]
[null,null,null,null,null,0]
[null,null,null,null,null,0]
[null,null,null,null,null,0]
[null,null,null,null,null,0]
[null,null,null,null,null,0]
[null,null,null,null,null,0]
[null,null,null,null,null,0]
[null,null,null,null,null,0]
[null,null,null,null,null,0]
[null,null,null,null,null,0]
[null,null,null,null,null,0]
[null,null,null,null,null,0]
[null,null,null,null,null,0]
[null,null,null,null,null,{"$f":"IF(A903=\"فاتورة\",E903,-E903)","v":0}]
[null,null,null,null,null,0]
[null,null,null,null,null,0]
[null,null,null,null,null,0]
[null,null,null,null,null,0]
[null,null,null,null,null,0]
[null,null,null,null,null,0]
[null,null,null,null,null,0]
[null,null,null,null,null,0]
[null,null,null,null,null,0]
[null,null,null,null,null,0]
[null,null,null,null,null,0]
[null,null,null,null,null,0]
[null,null,null,null,null,0]
[null,null,null,null,null,0]
[null,null,null,null,null,0]
[null,null,null,null,null,0]
[null,null,null,null,null,0]
[null,null,null,null,null,0]
[null,null,null,null,null,0]
[null,null,null,null,null,0]
[null,null,null,null,null,0]
[null,null,null,null,null,0]
[null,null,null,null,null,0]
[null,null,null,null,null,0]
[null,null,null,null,null,0]
[null,null,null,null,null,0]
[null,null,null,null,null,0]
[null,null,null,null,null,0]
[null,null,null,null,null,0]
[null,null,null,null,null,0]
[null,null,null,null,null,0]
[null,null,null,null,null,0]
[null,null,null,null,null,0]
[null,null,null,null,null,0]
[null,null,null,null,null,0]
[null,null,null,null,null,0]
[null,null,null,null,null,0]
[null,null,null,null,null,0]
[null,null,null,null,null,0]
[null,null,null,null,null,0]
[null,null,null,null,null,0]
[null,null,null,null,null,0]
[null,null,null,null,null,0]
[null,null,null,null,null,0]
[null,null,null,null,null,0]
[null,null,null,null,null,0]
[null,null,null,null,null,0]
[null,null,null,null,null,0]
[null,null,null,null,null,0]
[null,null,null,null,null,0]
[null,null,null,null,null,0]
[null,null,null,null,null,0]
[null,null,null,null,null,0]
[null,null,null,null,null,0]
[null,null,null,null,null,0]
[null,null,null,null,null,0]
[null,null,null,null,null,0]
[null,null,null,null,null,0]
[null,null,null,null,null,0]
[null,null,null,null,null,0]
[null,null,null,null,null,0]
[null,null,null,null,null,0]
[null,null,null,null,null,0]
[null,null,null,null,null,{"$f":"IF(A967=\"فاتورة\",E967,-E967)","v":0}]
[null,null,null,null,null,0]
[null,null,null,null,null,0]
[null,null,null,null,null,0]
[null,null,null,null,null,0]
[null,null,null,null,null,0]
[null,null,null,null,null,0]
[null,null,null,null,null,0]
[null,null,null,null,null,0]
[null,null,null,null,null,0]
[null,null,null,null,null,0]
[null,null,null,null,null,0]
[null,null,null,null,null,0]
[null,null,null,null,null,0]
[null,null,null,null,null,0]
[null,null,null,null,null,0]
[null,null,null,null,null,0]
[null,null,null,null,null,0]
[null,null,null,null,null,0]
[null,null,null,null,null,0]
[null,null,null,null,null,0]
[null,null,null,null,null,0]
[null,null,null,null,null,0]
[null,null,null,null,null,0]
[null,null,null,null,null,0]
[null,null,null,null,null,0]
[null,null,null,null,null,0]
[null,null,null,null,null,0]
[null,null,null,null,null,0]
[null,null,null,null,null,0]
[null,null,null,null,null,0]
[null,null,null,null,null,0]
[null,null,null,null,null,0]
[null,null,null,null,null,0]
[null,null,null,null,null,0]
[null,null,null,null,null,0]
[null,null,null,null,null,0]
[null,null,null,null,null,0]
[null,null,null,null,null,0]
[null,null,null,null,null,0]
[null,null,null,null,null,0]
[null,null,null,null,null,0]
[null,null,null,null,null,0]
[null,null,null,null,null,0]
[null,null,null,null,null,0]
[null,null,null,null,null,0]
[null,null,null,null,null,0]
[null,null,null,null,null,0]
[null,null,null,null,null,0]
[null,null,null,null,null,0]
[null,null,null,null,null,0]
[null,null,null,null,null,0]
[null,null,null,null,null,0]
[null,null,null,null,null,0]
[null,null,null,null,null,0]
[null,null,null,null,null,0]
[null,null,null,null,null,0]
[null,null,null,null,null,0]
[null,null,null,null,null,0]
[null,null,null,null,null,0]
[null,null,null,null,null,0]
[null,null,null,null,null,0]
[null,null,null,null,null,0]
[null,null,null,null,null,0]
[null,null,null,null,null,{"$f":"IF(A1031=\"فاتورة\",E1031,-E1031)","v":0}]
[null,null,null,null,null,0]
[null,null,null,null,null,0]
[null,null,null,null,null,0]
[null,null,null,null,null,0]
[null,null,null,null,null,0]
[null,null,null,null,null,0]
[null,null,null,null,null,0]
[null,null,null,null,null,0]
[null,null,null,null,null,0]
[null,null,null,null,null,0]
[null,null,null,null,null,0]
[null,null,null,null,null,0]
[null,null,null,null,null,0]
[null,null,null,null,null,0]
[null,null,null,null,null,0]
[null,null,null,null,null,0]
[null,null,null,null,null,0]
[null,null,null,null,null,0]
[null,null,null,null,null,0]
[null,null,null,null,null,0]
[null,null,null,null,null,0]
[null,null,null,null,null,0]
[null,null,null,null,null,0]
[null,null,null,null,null,0]
[null,null,null,null,null,0]
[null,null,null,null,null,0]
[null,null,null,null,null,0]
[null,null,null,null,null,0]
[null,null,null,null,null,0]
[null,null,null,null,null,0]
[null,null,null,null,null,0]
[null,null,null,null,null,0]
[null,null,null,null,null,0]
[null,null,null,null,null,0]
[null,null,null,null,null,0]
[null,null,null,null,null,0]
[null,null,null,null,null,0]
[null,null,null,null,null,0]
[null,null,null,null,null,0]
[null,null,null,null,null,0]
[null,null,null,null,null,0]
[null,null,null,null,null,0]
[null,null,null,null,null,0]
[null,null,null,null,null,0]
[null,null,null,null,null,0]
[null,null,null,null,null,0]
[null,null,null,null,null,0]
[null,null,null,null,null,0]
[null,null,null,null,null,0]
[null,null,null,null,null,0]
[null,null,null,null,null,0]
[null,null,null,null,null,0]
[null,null,null,null,null,0]
[null,null,null,null,null,0]
[null,null,null,null,null,0]
[null,null,null,null,null,0]
[null,null,null,null,null,0]
[null,null,null,null,null,0]
[null,null,null,null,null,0]
[null,null,null,null,null,0]
[null,null,null,null,null,0]
[null,null,null,null,null,0]
[null,null,null,null,null,0]
[null,null,null,null,null,{"$f":"IF(A1095=\"فاتورة\",E1095,-E1095)","v":0}]
[null,null,null,null,null,0]
[null,null,null,null,null,0]
[null,null,null,null,null,0]
[null,null,null,null,null,0]
[null,null,null,null,null,0]
[null,null,null,null,null,0]
[null,null,null,null,null,0]
[null,null,null,null,null,0]
[null,null,null,null,null,0]
[null,null,null,null,null,0]
[null,null,null,null,null,0]
[null,null,null,null,null,0]
[null,null,null,null,null,0]
[null,null,null,null,null,0]
[null,null,null,null,null,0]
[null,null,null,null,null,0]
[null,null,null,null,null,0]
[null,null,null,null,null,0]
[null,null,null,null,null,0]
[null,null,null,null,null,0]
[null,null,null,null,null,0]
[null,null,null,null,null,0]
[null,null,null,null,null,0]
[null,null,null,null,null,0]
[null,null,null,null,null,0]
[null,null,null,null,null,0]
[null,null,null,null,null,0]
[null,null,null,null,null,0]
[null,null,null,null,null,0]
[null,null,null,null,null,0]
[null,null,null,null,null,0]
[null,null,null,null,null,0]
[null,null,null,null,null,0]
[null,null,null,null,null,0]
[null,null,null,null,null,0]
[null,null,null,null,null,0]
[null,null,null,null,null,0]
[null,null,null,null,null,0]
[null,null,null,null,null,0]
[null,null,null,null,null,0]
[null,null,null,null,null,0]
[null,null,null,null,null,0]
[null,null,null,null,null,0]
[null,null,null,null,null,0]
[null,null,null,null,null,0]
[null,null,null,null,null,0]
[null,null,null,null,null,0]
[null,null,null,null,null,0]
[null,null,null,null,null,0]
[null,null,null,null,null,0]
[null,null,null,null,null,0]
[null,null,null,null,null,0]
[null,null,null,null,null,0]
[null,null,null,null,null,0]
[null,null,null,null,null,0]
[null,null,null,null,null,0]
[null,null,null,null,null,0]
[null,null,null,null,null,0]
[null,null,null,null,null,0]
[null,null,null,null,null,0]
[null,null,null,null,null,0]
[null,null,null,null,null,0]
[null,null,null,null,null,0]
[null,null,null,null,null,{"$f":"IF(A1159=\"فاتورة\",E1159,-E1159)","v":0}]
[null,null,null,null,null,0]
[null,null,null,null,null,0]
[null,null,null,null,null,0]
[null,null,null,null,null,0]
[null,null,null,null,null,0]
[null,null,null,null,null,0]
[null,null,null,null,null,0]
[null,null,null,null,null,0]
[null,null,null,null,null,0]
[null,null,null,null,null,0]
[null,null,null,null,null,0]
[null,null,null,null,null,0]
[null,null,null,null,null,0]
[null,null,null,null,null,0]
[null,null,null,null,null,0]
[null,null,null,null,null,0]
[null,null,null,null,null,0]
[null,null,null,null,null,0]
[null,null,null,null,null,0]
[null,null,null,null,null,0]
[null,null,null,null,null,0]
[null,null,null,null,null,0]
[null,null,null,null,null,0]
[null,null,null,null,null,0]
[null,null,null,null,null,0]
[null,null,null,null,null,0]
[null,null,null,null,null,0]
[null,null,null,null,null,0]
[null,null,null,null,null,0]
[null,null,null,null,null,0]
[null,null,null,null,null,0]
[null,null,null,null,null,0]
[null,null,null,null,null,0]
[null,null,null,null,null,0]
[null,null,null,null,null,0]
[null,null,null,null,null,0]
[null,null,null,null,null,0]
[null,null,null,null,null,0]
[null,null,null,null,null,0]
[null,null,null,null,null,0]
[null,null,null,null,null,0]
[null,null,null,null,null,0]
[null,null,null,null,null,0]
[null,null,null,null,null,0]
[null,null,null,null,null,0]
[null,null,null,null,null,0]
[null,null,null,null,null,0]
[null,null,null,null,null,0]
[null,null,null,null,null,0]
[null,null,null,null,null,0]
[null,null,null,null,null,0]
[null,null,null,null,null,0]
[null,null,null,null,null,0]
[null,null,null,null,null,0]
[null,null,null,null,null,0]
[null,null,null,null,null,0]
[null,null,null,null,null,0]
[null,null,null,null,null,0]
[null,null,null,null,null,0]
[null,null,null,null,null,0]
[null,null,null,null,null,0]
[null,null,null,null,null,0]
[null,null,null,null,null,0]
[null,null,null,null,null,{"$f":"IF(A1223=\"فاتورة\",E1223,-E1223)","v":0}]
[null,null,null,null,null,0]
[null,null,null,null,null,0]
[null,null,null,null,null,0]
[null,null,null,null,null,0]
[null,null,null,null,null,0]
[null,null,null,null,null,0]
[null,null,null,null,null,0]
[null,null,null,null,null,0]
[null,null,null,null,null,0]
[null,null,null,null,null,0]
[null,null,null,null,null,0]
[null,null,null,null,null,0]
[null,null,null,null,null,0]
[null,null,null,null,null,0]
[null,null,null,null,null,0]
[null,null,null,null,null,0]
[null,null,null,null,null,0]
[null,null,null,null,null,0]
[null,null,null,null,null,0]
[null,null,null,null,null,0]
[null,null,null,null,null,0]
[null,null,null,null,null,0]
[null,null,null,null,null,0]
[null,null,null,null,null,0]
[null,null,null,null,null,0]
[null,null,null,null,null,0]
[null,null,null,null,null,0]
[null,null,null,null,null,0]
[null,null,null,null,null,0]
[null,null,null,null,null,0]
[null,null,null,null,null,0]
[null,null,null,null,null,0]
[null,null,null,null,null,0]
[null,null,null,null,null,0]
[null,null,null,null,null,0]
[null,null,null,null,null,0]
[null,null,null,null,null,0]
[null,null,null,null,null,0]
[null,null,null,null,null,0]
[null,null,null,null,null,0]
[null,null,null,null,null,0]
[null,null,null,null,null,0]
[null,null,null,null,null,0]
[null,null,null,null,null,0]
[null,null,null,null,null,0]
[null,null,null,null,null,0]
[null,null,null,null,null,0]
[null,null,null,null,null,0]
[null,null,null,null,null,0]
[null,null,null,null,null,0]
[null,null,null,null,null,0]
[null,null,null,null,null,0]
[null,null,null,null,null,0]
[null,null,null,null,null,0]
[null,null,null,null,null,0]
[null,null,null,null,null,0]
[null,null,null,null,null,0]
[null,null,null,null,null,0]
[null,null,null,null,null,0]
[null,null,null,null,null,0]
[null,null,null,null,null,0]
[null,null,null,null,null,0]
[null,null,null,null,null,0]
[null,null,null,null,null,{"$f":"IF(A1287=\"فاتورة\",E1287,-E1287)","v":0}]
[null,null,null,null,null,0]
[null,null,null,null,null,0]
[null,null,null,null,null,0]
[null,null,null,null,null,0]
[null,null,null,null,null,0]
[null,null,null,null,null,0]
[null,null,null,null,null,0]
[null,null,null,null,null,0]
[null,null,null,null,null,0]
[null,null,null,null,null,0]
[null,null,null,null,null,0]
[null,null,null,null,null,0]
[null,null,null,null,null,0]
[null,null,null,null,null,0]
[null,null,null,null,null,0]
[null,null,null,null,null,0]
[null,null,null,null,null,0]
[null,null,null,null,null,0]
[null,null,null,null,null,0]
[null,null,null,null,null,0]
[null,null,null,null,null,0]
[null,null,null,null,null,0]
[null,null,null,null,null,0]
[null,null,null,null,null,0]
[null,null,null,null,null,0]
[null,null,null,null,null,0]
[null,null,null,null,null,0]
[null,null,null,null,null,0]
[null,null,null,null,null,0]
[null,null,null,null,null,0]
[null,null,null,null,null,0]
[null,null,null,null,null,0]
[null,null,null,null,null,0]
[null,null,null,null,null,0]
[null,null,null,null,null,0]
[null,null,null,null,null,0]
[null,null,null,null,null,0]
[null,null,null,null,null,0]
[null,null,null,null,null,0]
[null,null,null,null,null,0]
[null,null,null,null,null,0]
[null,null,null,null,null,0]
[null,null,null,null,null,0]
[null,null,null,null,null,0]
[null,null,null,null,null,0]
[null,null,null,null,null,0]
[null,null,null,null,null,0]
[null,null,null,null,null,0]
[null,null,null,null,null,0]
[null,null,null,null,null,0]
[null,null,null,null,null,0]
[null,null,null,null,null,0]
[null,null,null,null,null,0]
[null,null,null,null,null,0]
[null,null,null,null,null,0]
[null,null,null,null,null,0]
[null,null,null,null,null,0]
[null,null,null,null,null,0]
[null,null,null,null,null,0]
[null,null,null,null,null,0]
[null,null,null,null,null,0]
[null,null,null,null,null,0]
[null,null,null,null,null,0]
[null,null,null,null,null,{"$f":"IF(A1351=\"فاتورة\",E1351,-E1351)","v":0}]
[null,null,null,null,null,0]
[null,null,null,null,null,0]
[null,null,null,null,null,0]
[null,null,null,null,null,0]
[null,null,null,null,null,0]
[null,null,null,null,null,0]
[null,null,null,null,null,0]
[null,null,null,null,null,0]
[null,null,null,null,null,0]
[null,null,null,null,null,0]
[null,null,null,null,null,0]
[null,null,null,null,null,0]
[null,null,null,null,null,0]
[null,null,null,null,null,0]
[null,null,null,null,null,0]
[null,null,null,null,null,0]
[null,null,null,null,null,0]
[null,null,null,null,null,0]
[null,null,null,null,null,0]
[null,null,null,null,null,0]
[null,null,null,null,null,0]
[null,null,null,null,null,0]
[null,null,null,null,null,0]
[null,null,null,null,null,0]
[null,null,null,null,null,0]
[null,null,null,null,null,0]
[null,null,null,null,null,0]
[null,null,null,null,null,0]
[null,null,null,null,null,0]
[null,null,null,null,null,0]
[null,null,null,null,null,0]
[null,null,null,null,null,0]
[null,null,null,null,null,0]
[null,null,null,null,null,0]
[null,null,null,null,null,0]
[null,null,null,null,null,0]
[null,null,null,null,null,0]
[null,null,null,null,null,0]
[null,null,null,null,null,0]
[null,null,null,null,null,0]
[null,null,null,null,null,0]
[null,null,null,null,null,0]
[null,null,null,null,null,0]
[null,null,null,null,null,0]
[null,null,null,null,null,0]
[null,null,null,null,null,0]
[null,null,null,null,null,0]
[null,null,null,null,null,0]
[null,null,null,null,null,0]
[null,null,null,null,null,0]
[null,null,null,null,null,0]
[null,null,null,null,null,0]
[null,null,null,null,null,0]
[null,null,null,null,null,0]
[null,null,null,null,null,0]
[null,null,null,null,null,0]
[null,null,null,null,null,0]
[null,null,null,null,null,0]
[null,null,null,null,null,0]
[null,null,null,null,null,0]
[null,null,null,null,null,0]
[null,null,null,null,null,0]
[null,null,null,null,null,0]
[null,null,null,null,null,{"$f":"IF(A1415=\"فاتورة\",E1415,-E1415)","v":0}]
[null,null,null,null,null,0]
[null,null,null,null,null,0]
[null,null,null,null,null,0]
[null,null,null,null,null,0]
[null,null,null,null,null,0]
[null,null,null,null,null,0]
[null,null,null,null,null,0]
[null,null,null,null,null,0]
[null,null,null,null,null,0]
[null,null,null,null,null,0]
[null,null,null,null,null,0]
[null,null,null,null,null,0]
[null,null,null,null,null,0]
[null,null,null,null,null,0]
[null,null,null,null,null,0]
[null,null,null,null,null,0]
[null,null,null,null,null,0]
[null,null,null,null,null,0]
[null,null,null,null,null,0]
[null,null,null,null,null,0]
[null,null,null,null,null,0]
[null,null,null,null,null,0]
[null,null,null,null,null,0]
[null,null,null,null,null,0]
[null,null,null,null,null,0]
[null,null,null,null,null,0]
[null,null,null,null,null,0]
[null,null,null,null,null,0]
[null,null,null,null,null,0]
[null,null,null,null,null,0]
[null,null,null,null,null,0]
[null,null,null,null,null,0]
[null,null,null,null,null,0]
[null,null,null,null,null,0]
[null,null,null,null,null,0]
[null,null,null,null,null,0]
[null,null,null,null,null,0]
[null,null,null,null,null,0]
[null,null,null,null,null,0]
[null,null,null,null,null,0]
[null,null,null,null,null,0]
[null,null,null,null,null,0]
[null,null,null,null,null,0]
[null,null,null,null,null,0]
[null,null,null,null,null,0]
[null,null,null,null,null,0]
[null,null,null,null,null,0]
[null,null,null,null,null,0]
[null,null,null,null,null,0]
[null,null,null,null,null,0]
[null,null,null,null,null,0]
[null,null,null,null,null,0]
[null,null,null,null,null,0]
[null,null,null,null,null,0]
[null,null,null,null,null,0]
[null,null,null,null,null,0]
[null,null,null,null,null,0]
[null,null,null,null,null,0]
[null,null,null,null,null,0]
[null,null,null,null,null,0]
[null,null,null,null,null,0]
[null,null,null,null,null,0]
[null,null,null,null,null,0]
[null,null,null,null,null,{"$f":"IF(A1479=\"فاتورة\",E1479,-E1479)","v":0}]
[null,null,null,null,null,0]
[null,null,null,null,null,0]
[null,null,null,null,null,0]
[null,null,null,null,null,0]
[null,null,null,null,null,0]
[null,null,null,null,null,0]
[null,null,null,null,null,0]
[null,null,null,null,null,0]
[null,null,null,null,null,0]
[null,null,null,null,null,0]
[null,null,null,null,null,0]
[null,null,null,null,null,0]
[null,null,null,null,null,0]
[null,null,null,null,null,0]
[null,null,null,null,null,0]
[null,null,null,null,null,0]
[null,null,null,null,null,0]
[null,null,null,null,null,0]
[null,null,null,null,null,0]
[null,null,null,null,null,0]
[null,null,null,null,null,0]
[null,null,null,null,null,0]
[null,null,null,null,null,0]
[null,null,null,null,null,0]
[null,null,null,null,null,0]
[null,null,null,null,null,0]
[null,null,null,null,null,0]
[null,null,null,null,null,0]
[null,null,null,null,null,0]
[null,null,null,null,null,0]
[null,null,null,null,null,0]
[null,null,null,null,null,0]
[null,null,null,null,null,0]
[null,null,null,null,null,0]
[null,null,null,null,null,0]
[null,null,null,null,null,0]
[null,null,null,null,null,0]
[null,null,null,null,null,0]
[null,null,null,null,null,0]
[null,null,null,null,null,0]
[null,null,null,null,null,0]
[null,null,null,null,null,0]
[null,null,null,null,null,0]
[null,null,null,null,null,0]
[null,null,null,null,null,0]
[null,null,null,null,null,0]
[null,null,null,null,null,0]